bitfinex/quotes_SOLUSD_20250714
["timestamp","ask_amount","ask_price","bid_price","bid_amount"]
[1752522190047,0.67,163.72,163.7,31.06]
[1752522191261,0.06,163.72,163.7,38.68993976]
[1752522191445,0.06,163.72,163.71,0.7]
[1752522192645,0.06,163.72,163.7,31.06]
[1752522194047,7.75343841,163.72,163.69,31.09]
[1752522194353,0.73,163.72,163.69,38.71993976]
[1752522194725,0.06,163.72,163.69,38.71993976]
[1752522195052,0.06,163.72,163.69,44.82900001]
[1752522195531,0.06,163.72,163.7,6.80873467]
[1752522195730,0.06,163.72,163.71,31.06]
[1752522197060,0.06,163.72,163.71,38.68993976]
[1752522198151,0.06,163.72,163.71,37.98993976]
[1752522199167,0.06,163.72,163.71,44.7983021]
[1752522202364,0.06,163.72,163.71,45.40913833]
[1752522203739,0.06,163.72,163.71,37.98993976]
[1752522203932,0.73,163.72,163.71,31.06]
[1752522204241,0.06,163.72,163.71,31.06]
[1752522207648,0.06,163.72,163.7,6.10872756]
[1752522207845,0.06,163.72,163.71,31.06]
[1752522211567,0.06,163.72,163.71,37.16836234]
[1752522211755,0.06,163.72,163.71,44.7983021]
[1752522216774,0.06,163.72,163.7,13.03858251]
[1752522217069,0.77,163.72,163.71,31.06]
[1752522217453,0.06,163.72,163.71,31.06]
[1752522217869,0.06,163.72,163.71,37.98993976]
[1752522218052,0.06,163.72,163.71,44.0983021]
[1752522218253,0.06,163.72,163.71,44.7983021]
[1752522230569,0.06,163.72,163.71,6.80836234]
[1752522230880,0.06,163.72,163.71,44.7783021]
[1752522231867,0.06,163.72,163.71,37.14836234]
[1752522232065,0.06,163.72,163.71,44.7783021]
[1752522232675,0.06,163.72,163.71,37.84836234]
[1752522232883,0.06,163.72,163.71,44.7783021]
[1752522233388,0.06,163.72,163.71,44.0783021]
[1752522233610,0.06,163.72,163.71,6.92993976]
[1752522233771,0.77,163.72,163.71,31.04]
[1752522236892,0.77,163.72,163.69,6.13897521]
[1752522237073,0.77,163.72,163.7,31.04]
[1752522239881,0.77,163.72,163.69,6.13907452]
[1752522240090,0.77,163.72,163.7,31.04]
[1752522240284,0.06,163.72,163.7,31.04]
[1752522240595,0.67,163.71,163.7,31.04]
[1752522241190,0.67,163.71,163.69,6.13896553]
[1752522241394,0.67,163.71,163.7,31.04]
[1752522241900,0.06,163.72,163.7,37.96993976]
[1752522243185,0.06,163.72,163.7,44.07857348]
[1752522243978,0.73,163.72,163.7,44.07857348]
[1752522244182,0.73,163.72,163.7,37.96993976]
[1752522244796,0.73,163.72,163.7,31.04]
[1752522245001,0.67,163.71,163.7,31.04]
[1752522246482,0.67,163.71,163.69,0.03]
[1752522246483,13.7083021,163.71,163.69,0.03]
[1752522246693,14.47184739,163.71,163.69,0.03]
[1752522246903,0.67,163.7,163.69,0.03]
[1752522247701,7.59993976,163.7,163.69,0.03]
[1752522247907,0.67,163.7,163.69,0.03]
[1752522248417,1.43359193,163.7,163.69,0.03]
[1752522248711,14.47226718,163.7,163.69,0.03]
[1752522252911,7.54232742,163.7,163.69,0.03]
[1752522253598,0.67,163.7,163.69,0.03]
[1752522254008,1.43359193,163.7,163.69,0.03]
[1752522254194,0.67,163.7,163.69,0.03]
[1752522254584,147.9,163.71,163.69,0.03]
[1752522254808,0.67,163.7,163.69,0.03]
[1752522255013,14.47226718,163.7,163.69,0.03]
[1752522264016,7.54232742,163.7,163.69,0.03]
[1752522265705,14.47226718,163.7,163.69,0.03]
[1752522270716,0.76359193,163.7,163.69,0.03]
[1752522271437,13.09842428,163.71,163.69,0.03]
[1752522271931,6.16848452,163.71,163.69,0.03]
[1752522272134,0.06,163.71,163.69,0.03]
[1752522275036,6.98993976,163.71,163.69,0.03]
[1752522275519,0.06,163.71,163.69,0.03]
[1752522275840,0.06,163.71,163.69,0.7]
[1752522277643,0.06,163.71,163.69,13.73896612]
[1752522278007,0.06,163.71,163.7,0.67]
[1752522278417,0.06,163.71,163.7,7.59993976]
[1752522279721,0.06,163.71,163.7,13.70867525]
[1752522280630,0.06,163.71,163.7,6.77873549]
[1752522280838,0.06,163.71,163.7,13.70867525]
[1752522282642,0.06,163.71,163.7,6.77873549]
[1752522282950,0.06,163.71,163.7,13.70867525]
[1752522286344,0.06,163.71,163.7,6.77873549]
[1752522286545,0.77,163.71,163.69,31.07]
[1752522286719,7.69993976,163.71,163.69,31.07]
[1752522287047,0.77,163.71,163.69,31.07]
[1752522289929,0.71,163.7,163.69,31.07]
[1752522290244,0.71,163.7,163.69,0.03]
[1752522291223,0.06,163.71,163.69,0.03]
[1752522291441,0.77,163.71,163.69,0.03]
[1752522292848,7.69993976,163.71,163.69,0.03]
[1752522293148,0.77,163.71,163.69,0.03]
[1752522295350,0.06,163.71,163.7,0.67]
[1752522295525,0.06,163.71,163.7,38.61993976]
[1752522296739,0.06,163.71,163.7,39.2308133]
[1752522297148,0.06,163.71,163.7,56.01549727]
[1752522297352,0.06,163.71,163.7,62.12423276]
[1752522298565,0.06,163.72,163.7,62.12423276]
[1752522298566,0.06,163.72,163.71,16.78468397]
[1752522298863,0.06,163.72,163.71,24.43462373]
[1752522299254,0.06,163.76,163.71,24.43462373]
[1752522299471,0.06,163.76,163.75,6.92993976]
[1752522299756,0.06,163.76,163.75,37.94993976]
[1752522299946,0.06,163.76,163.75,38.66993976]
[1752522300135,0.06,163.76,163.75,31.74]
[1752522300335,0.06,163.76,163.75,38.66993976]
[1752522300961,0.06,163.76,163.73,0.61076161]
[1752522300962,0.77,163.76,163.73,0.61076161]
[1752522301190,0.06,163.76,163.75,31.02]
[1752522301759,0.77,163.76,163.75,31.02]
[1752522301960,0.06,163.76,163.75,31.02]
[1752522302374,0.06,163.76,163.75,37.94993976]
[1752522302864,0.06,163.76,163.75,44.77680998]
[1752522303069,0.06,163.76,163.75,31.02]
[1752522303239,0.77,163.76,163.75,31.02]
[1752522304053,0.06,163.76,163.75,31.02]
[1752522304874,0.77,163.76,163.75,31.02]
[1752522305376,0.77,163.76,163.73,31.02]
[1752522305377,7.69993976,163.76,163.73,31.02]
[1752522305677,0.71,163.75,163.73,31.02]
[1752522306470,13.09647965,163.76,163.74,31.02]
[1752522306973,6.98993976,163.76,163.74,31.02]
[1752522307171,0.77,163.76,163.74,31.02]
[1752522307471,0.06,163.76,163.74,31.02]
[1752522307675,0.71,163.75,163.7,6.10873549]
[1752522307865,6.92993976,163.73,163.69,0.03]
[1752522308071,7.63993976,163.72,163.69,0.03]
[1752522308385,6.92993976,163.7,163.69,0.03]
[1752522308955,7.63993976,163.7,163.69,0.03]
[1752522309754,147.9,163.71,163.69,0.03]
[1752522310168,148.61,163.71,163.69,0.03]
[1752522311977,147.9,163.71,163.69,0.03]
[1752522312173,147.9,163.71,163.7,31.02]
[1752522312559,148.61,163.71,163.69,0.03]
[1752522312764,147.9,163.71,163.69,0.03]
[1752522312961,160.93862041,163.71,163.69,0.03]
[1752522313173,7.69353169,163.7,163.69,0.03]
[1752522313364,1.47359193,163.7,163.69,0.03]
[1752522313987,14.51226718,163.7,163.69,0.03]
[1752522314375,8.40353169,163.7,163.69,0.03]
[1752522314572,0.71,163.7,163.69,0.03]
[1752522314788,1.47359193,163.7,163.69,0.03]
[1752522314991,0.71,163.7,163.69,0.03]
[1752522315575,1.47359193,163.7,163.69,0.03]
[1752522315776,8.40353169,163.7,163.69,0.03]
[1752522316976,1.47359193,163.7,163.69,0.03]
[1752522320780,14.51226718,163.7,163.69,0.03]
[1752522342198,7.69353169,163.7,163.69,0.03]
[1752522342929,14.52226718,163.7,163.69,0.03]
[1752522343305,27.54349865,163.72,163.69,0.71]
[1752522343624,6.92993976,163.71,163.69,0.03]
[1752522343826,6.92993976,163.7,163.69,0.03]
[1752522344622,14.52226718,163.7,163.69,0.03]
[1752522347931,14.52226718,163.7,163.69,0.03]
[1752522359232,12.00668353,163.7,163.69,0.03]
[1752522359528,28.7913675,163.7,163.69,0.03]
[1752522359727,28.7913675,163.7,163.68,0.03]
[1752522359728,16.78468397,163.69,163.68,0.03]
[1752522359907,65.53646452,163.69,163.68,0.03]
[1752522360106,69.65576849,163.69,163.67,0.2]
[1752522360328,71.32014975,163.68,163.67,0.2]
[1752522360634,175.34368523,163.68,163.67,0.2]
[1752522360931,178.99435611,163.68,163.67,0.2]
[1752522361105,219.54594643,163.68,163.67,0.2]
[1752522361512,190.68468397,163.67,163.66,0.03]
[1752522361813,190.68468397,163.67,163.64,0.03]
[1752522361814,26.0,163.65,163.64,0.03]
[1752522362032,78.98286531,163.65,163.64,0.03]
[1752522362225,79.66286531,163.65,163.63,0.2]
[1752522362416,5.09435611,163.64,163.63,0.2]
[1752522362622,0.68,163.64,163.63,0.2]
[1752522362826,5.09435611,163.64,163.63,0.2]
[1752522363034,33.58190721,163.64,163.63,0.2]
[1752522363230,39.69288252,163.64,163.63,0.2]
[1752522363432,40.45675443,163.64,163.63,0.2]
[1752522365036,34.34577912,163.64,163.63,0.2]
[1752522366134,181.56577912,163.64,163.63,0.2]
[1752522366320,147.9,163.64,163.63,13.93325598]
[1752522367222,6.90190721,163.7,163.63,13.93325598]
[1752522367421,148.66363858,163.69,163.65,6.90190721]
[1752522367621,147.9,163.69,163.66,0.72]
[1752522367822,147.9,163.69,163.67,0.72]
[1752522368024,147.9,163.68,163.67,0.72]
[1752522368519,6.90190721,163.71,163.67,0.72]
[1752522368748,6.90190721,163.71,163.68,0.72]
[1752522368749,0.76359193,163.7,163.68,0.72]
[1752522369322,7.66549914,163.7,163.66,0.72]
[1752522369524,1.44359193,163.7,163.66,0.72]
[1752522369714,0.68,163.69,163.65,6.90190721]
[1752522369929,0.76363858,163.69,163.66,7.62190721]
[1752522370141,0.76363858,163.69,163.67,0.72]
[1752522370839,13.69054201,163.71,163.67,0.72]
[1752522370840,0.76359193,163.7,163.67,0.72]
[1752522371438,0.76359193,163.7,163.66,13.01189227]
[1752522371645,0.76354529,163.71,163.68,0.72]
[1752522371823,0.76354529,163.71,163.69,0.72]
[1752522372638,7.58190721,163.7,163.65,0.72]
[1752522372855,7.58190721,163.7,163.66,0.72]
[1752522373025,0.76354529,163.71,163.66,0.72]
[1752522373026,7.6654525,163.71,163.66,7.62190721]
[1752522373238,6.90190721,163.7,163.67,0.72]
[1752522373724,0.76363858,163.69,163.67,0.72]
[1752522373919,0.76363858,163.69,163.63,0.2]
[1752522373920,7.58190721,163.68,163.63,0.2]
[1752522374140,8.3456391,163.67,163.64,31.74]
[1752522374534,6.90190721,163.67,163.64,31.74]
[1752522375246,6.90190721,163.68,163.65,0.72]
[1752522375440,14.45488953,163.69,163.64,44.03287745]
[1752522375750,14.45488953,163.69,163.66,0.72]
[1752522376427,6.90190721,163.68,163.66,0.72]
[1752522376746,6.90190721,163.68,163.64,37.13097024]
[1752522377039,6.90190721,163.68,163.65,0.72]
[1752522377938,0.76373189,163.67,163.65,0.72]
[1752522378522,0.76373189,163.67,163.64,31.74]
[1752522378928,0.76363858,163.69,163.65,7.62190721]
[1752522379123,0.76363858,163.69,163.66,7.62190721]
[1752522379339,147.9,163.7,163.67,0.72]
[1752522379540,0.76363858,163.69,163.67,0.72]
[1752522379822,8.34549914,163.7,163.65,6.90190721]
[1752522380025,6.90190721,163.69,163.66,0.72]
[1752522380430,7.58190721,163.69,163.65,6.90190721]
[1752522380645,7.58190721,163.69,163.65,7.62190721]
[1752522380646,0.76368523,163.68,163.65,7.62190721]
[1752522381046,0.76368523,163.68,163.64,37.13092361]
[1752522381253,0.76368523,163.68,163.66,0.72]
[1752522382254,7.58190721,163.67,163.64,31.02]
[1752522382434,0.76377856,163.66,163.64,31.02]
[1752522382751,1.44373189,163.67,163.64,31.74]
[1752522382952,0.76373189,163.67,163.65,0.72]
[1752522383251,13.77514109,163.68,163.65,0.72]
[1752522383422,7.5532288,163.68,163.65,0.72]
[1752522383628,14.45513601,163.68,163.65,0.72]
[1752522384151,0.76368523,163.68,163.66,0.72]
[1752522385728,7.72554579,163.69,163.66,0.72]
[1752522386439,6.90190721,163.68,163.65,0.72]
[1752522386630,8.40554579,163.69,163.65,0.72]
[1752522386838,7.72554579,163.69,163.66,0.72]
[1752522387435,0.82363858,163.69,163.67,0.72]
[1752522387648,0.06,163.69,163.68,0.72]
[1752522387957,0.06,163.69,163.66,7.62190721]
[1752522388163,0.06,163.69,163.66,6.90190721]
[1752522388366,0.06,163.69,163.68,0.72]
[1752522388660,0.06,163.69,163.68,31.74]
[1752522389956,0.06,163.69,163.68,31.71]
[1752522392339,8.41554579,163.69,163.67,31.0]
[1752522392540,7.59190721,163.68,163.66,31.0]
[1752522392751,7.6656391,163.67,163.66,31.0]
[1752522392939,6.90190721,163.67,163.66,31.0]
[1752522393140,8.35559244,163.68,163.66,31.0]
[1752522393454,7.66559244,163.68,163.63,0.89]
[1752522393666,6.90190721,163.66,163.64,31.0]
[1752522393834,8.35568577,163.66,163.64,31.0]
[1752522394033,13.70223808,163.66,163.64,31.0]
[1752522395038,13.01223808,163.66,163.64,31.0]
[1752522396358,6.80033087,163.66,163.64,31.0]
[1752522396662,13.70223808,163.66,163.64,31.0]
[1752522396852,6.11033087,163.66,163.65,0.69]
[1752522397165,6.87410943,163.66,163.64,31.0]
[1752522397364,6.87410943,163.66,163.64,31.69]
[1752522397548,13.77601664,163.66,163.64,31.69]
[1752522398259,13.77601664,163.66,163.64,0.69]
[1752522398564,6.87410943,163.66,163.64,31.71]
[1752522399268,14.46601664,163.66,163.64,31.02]
[1752522399461,7.59190721,163.65,163.63,0.2]
[1752522399664,1.45382523,163.65,163.63,0.2]
[1752522399962,6.11033087,163.66,163.63,0.2]
[1752522399963,13.77601664,163.66,163.63,0.89]
[1752522400464,6.90190721,163.65,163.63,0.89]
[1752522400866,13.01254726,163.65,163.63,0.89]
[1752522401240,6.87411316,163.66,163.63,0.2]
[1752522401453,14.46602037,163.66,163.63,0.2]
[1752522401652,6.90190721,163.65,163.63,0.2]
[1752522401850,7.66577912,163.64,163.63,0.2]
[1752522402057,8.35577912,163.64,163.63,0.2]
[1752522402870,14.46675443,163.64,163.63,0.2]
[1752522409249,40.46675443,163.64,163.63,0.2]
[1752522409451,88.2714384,163.64,163.63,0.2]
[1752522411454,39.77675443,163.64,163.63,0.2]
[1752522411655,40.46675443,163.64,163.63,0.2]
[1752522419482,71.48675443,163.64,163.63,0.2]
[1752522420968,40.46675443,163.64,163.63,0.2]
[1752522421489,39.77675443,163.64,163.63,0.2]
[1752522423088,39.77675443,163.64,163.63,0.88]
[1752522423293,6.87484722,163.64,163.63,0.88]
[1752522423473,13.77675443,163.64,163.63,0.2]
[1752522423670,14.47675443,163.64,163.63,0.2]
[1752522424273,13.77675443,163.64,163.63,0.2]
[1752522425786,13.83675443,163.64,163.63,0.2]
[1752522426669,0.06,163.64,163.63,0.88]
[1752522430792,0.06,163.64,163.63,0.88]
[1752522434080,0.06,163.64,163.63,2.4882]
[1752522434580,0.06,163.64,163.63,15.50145598]
[1752522435903,0.06,163.64,163.63,8.59954877]
[1752522436695,0.06,163.64,163.63,2.4882]
[1752522437424,0.06,163.64,163.63,0.2]
[1752522437698,6.96190721,163.64,163.63,0.2]
[1752522437881,0.06,163.64,163.63,0.2]
[1752522439979,6.96190721,163.64,163.63,0.2]
[1752522440189,7.66190721,163.64,163.63,0.2]
[1752522440391,6.96190721,163.64,163.63,0.2]
[1752522440791,0.06,163.64,163.63,0.88]
[1752522444783,0.06,163.64,163.63,0.2]
[1752522444979,6.96190721,163.64,163.63,0.2]
[1752522445197,7.66190721,163.64,163.63,0.2]
[1752522447121,13.77288252,163.64,163.63,0.2]
[1752522447690,161.67288252,163.64,163.63,0.2]
[1752522451352,147.96,163.64,163.63,0.2]
[1752522451617,147.96,163.64,163.63,0.86]
[1752522452905,147.96,163.64,163.63,13.87325598]
[1752522453082,0.06,163.64,163.63,13.87325598]
[1752522453285,0.06,163.64,163.63,14.48439085]
[1752522454094,0.06,163.64,163.63,45.50439085]
[1752522457604,0.06,163.64,163.63,38.78190721]
[1752522457809,0.06,163.64,163.63,44.89325598]
[1752522458210,0.06,163.64,163.63,37.99134877]
[1752522458730,0.06,163.64,163.63,31.88]
[1752522459308,0.06,163.64,163.63,0.86]
[1752522459507,0.06,163.64,163.63,0.2]
[1752522459508,0.74,163.64,163.63,0.2]
[1752522459814,7.64190721,163.64,163.63,0.2]
[1752522460014,8.40577912,163.64,163.63,0.2]
[1752522460933,7.64190721,163.64,163.63,0.2]
[1752522461525,6.96190721,163.64,163.63,0.2]
[1752522461728,0.06,163.64,163.63,0.2]
[1752522461928,0.06,163.64,163.63,0.86]
[1752522462121,0.06,163.64,163.63,13.87325598]
[1752522469729,0.06,163.64,163.63,6.97134877]
[1752522469933,0.06,163.64,163.63,13.87325598]
[1752522470421,0.06,163.64,163.63,6.97134877]
[1752522470621,0.06,163.64,163.63,13.87325598]
[1752522471648,0.06,163.64,163.63,44.87325598]
[1752522478357,0.06,163.64,163.63,44.21325598]
[1752522478654,0.06,163.64,163.63,44.89325598]
[1752522479743,0.06,163.64,163.63,6.99134877]
[1752522479948,0.77,163.64,163.63,31.2]
[1752522480855,0.06,163.64,163.63,31.2]
[1752522482449,0.77,163.64,163.63,31.2]
[1752522482651,7.67190721,163.64,163.63,0.2]
[1752522484141,13.78288252,163.64,163.63,0.2]
[1752522484343,14.54675443,163.64,163.63,0.2]
[1752522484548,13.78288252,163.64,163.63,0.2]
[1752522487135,0.06,163.64,163.63,31.2]
[1752522488038,0.06,163.64,163.63,45.50439085]
[1752522488463,0.06,163.64,163.63,88.28907482]
[1752522488634,0.06,163.69,163.66,26.0]
[1752522488839,0.06,163.69,163.68,6.90190721]
[1752522489362,0.06,163.69,163.68,7.58190721]
[1752522490567,0.06,163.69,163.68,13.69138912]
[1752522491642,0.06,163.69,163.68,7.58190721]
[1752522492447,0.06,163.69,163.68,6.90190721]
[1752522495261,0.06,163.69,163.67,31.0]
[1752522495560,0.06,163.69,163.67,37.90190721]
[1752522495754,0.06,163.69,163.67,6.90190721]
[1752522495959,0.77,163.69,163.68,31.0]
[1752522496664,0.06,163.69,163.68,31.0]
[1752522496963,0.06,163.69,163.68,37.90190721]
[1752522498670,0.06,163.69,163.68,31.0]
[1752522498850,0.77,163.69,163.68,31.0]
[1752522499872,0.77,163.69,163.64,0.68]
[1752522500073,6.90190721,163.67,163.63,0.2]
[1752522500249,6.90190721,163.65,163.64,31.0]
[1752522500452,6.90190721,163.65,163.63,0.2]
[1752522500769,8.37577912,163.64,163.63,0.2]
[1752522500974,7.61190721,163.64,163.63,0.2]
[1752522501860,13.72288252,163.64,163.63,0.2]
[1752522507263,39.72288252,163.64,163.63,0.2]
[1752522507465,40.48675443,163.64,163.63,0.2]
[1752522508474,39.72288252,163.64,163.63,0.2]
[1752522513473,33.61190721,163.64,163.63,0.2]
[1752522513780,34.37577912,163.64,163.63,0.2]
[1752522513990,33.61190721,163.64,163.63,0.2]
[1752522514659,13.01288252,163.64,163.63,0.2]
[1752522514861,6.90190721,163.64,163.63,0.2]
[1752522515174,13.01265736,163.65,163.63,0.2]
[1752522515373,13.73265736,163.65,163.63,0.2]
[1752522515550,7.62190721,163.65,163.63,0.2]
[1752522515881,13.77605148,163.66,163.63,0.89]
[1752522516175,7.62190721,163.65,163.63,0.2]
[1752522516360,6.90190721,163.64,163.63,0.2]
[1752522516675,8.38577912,163.64,163.63,0.2]
[1752522516884,14.49675443,163.64,163.63,0.2]
[1752522523677,31.2814384,163.64,163.63,0.2]
[1752522527984,24.37953119,163.64,163.63,0.2]
[1752522528183,31.2814384,163.64,163.63,0.2]
[1752522533291,31.3414384,163.64,163.63,0.2]
[1752522533767,14.55675443,163.64,163.63,0.2]
[1752522533973,7.72577912,163.64,163.63,0.2]
[1752522534683,13.83675443,163.64,163.63,0.2]
[1752522536792,14.55675443,163.64,163.63,0.2]
[1752522539991,45.55675443,163.64,163.63,0.2]
[1752522540191,37.93484722,163.64,163.63,0.2]
[1752522540370,0.06,163.64,163.63,0.2]
[1752522540776,6.17097531,163.64,163.63,0.2]
[1752522540992,13.07288252,163.64,163.63,0.2]
[1752522541493,0.06,163.64,163.63,0.88]
[1752522547396,0.06,163.64,163.63,0.88]
[1752522551777,0.82387191,163.64,163.63,0.2]
[1752522551999,8.38577912,163.64,163.63,0.2]
[1752522553187,39.38577912,163.64,163.63,0.2]
[1752522553986,45.49675443,163.64,163.63,0.2]
[1752522555976,44.83675443,163.64,163.63,0.2]
[1752522556599,45.49675443,163.64,163.63,0.2]
[1752522558805,44.83675443,163.64,163.63,0.2]
[1752522558999,13.83675443,163.64,163.63,0.2]
[1752522559185,6.93484722,163.64,163.63,0.2]
[1752522559698,0.82387191,163.64,163.63,0.2]
[1752522559885,0.06,163.64,163.63,0.88]
[1752522562817,0.06,163.64,163.63,2.4682]
[1752522563307,0.06,163.64,163.63,9.37010721]
[1752522563508,0.06,163.64,163.63,15.48145598]
[1752522563687,0.06,163.64,163.63,9.37010721]
[1752522564902,0.06,163.64,163.63,15.48145598]
[1752522567199,0.06,163.64,163.63,28.4682]
[1752522567397,0.06,163.64,163.63,2.4682]
[1752522567598,0.06,163.64,163.63,9.37010721]
[1752522568294,0.06,163.64,163.63,15.48145598]
[1752522569390,0.06,163.64,163.63,46.48145598]
[1752522569794,0.06,163.64,163.63,40.37010721]
[1752522570917,0.06,163.64,163.63,9.37010721]
[1752522571121,0.06,163.64,163.63,31.2]
[1752522574893,0.06,163.64,163.63,31.92]
[1752522576295,0.06,163.64,163.63,38.82190721]
[1752522576704,0.06,163.64,163.63,31.92]
[1752522577105,0.06,163.64,163.63,0.92]
[1752522577908,0.06,163.64,163.63,7.82190721]
[1752522578110,0.06,163.64,163.63,13.93325598]
[1752522578410,0.06,163.64,163.63,7.82190721]
[1752522579505,0.06,163.64,163.63,0.2]
[1752522580400,0.06,163.64,163.63,7.82190721]
[1752522580801,0.06,163.64,163.63,13.93325598]
[1752522581096,0.06,163.64,163.63,14.54439085]
[1752522582397,0.06,163.64,163.63,13.93325598]
[1752522582717,0.06,163.64,163.63,38.03134877]
[1752522582919,0.06,163.64,163.63,38.82190721]
[1752522583117,0.06,163.64,163.63,0.92]
[1752522583302,0.06,163.64,163.63,0.2]
[1752522583834,0.77,163.64,163.63,0.2]
[1752522585820,0.06,163.64,163.63,0.2]
[1752522586206,0.77,163.64,163.63,0.2]
[1752522586625,7.67190721,163.64,163.63,0.2]
[1752522588000,39.43577912,163.64,163.63,0.2]
[1752522588926,45.54675443,163.64,163.63,0.2]
[1752522600215,45.54675443,163.64,163.62,0.03]
[1752522600415,179.62,163.63,163.62,0.03]
[1752522600818,147.9,163.63,163.62,0.74]
[1752522601027,147.9,163.63,163.62,7.64190721]
[1752522601232,147.9,163.63,163.62,13.75362949]
[1752522601537,0.06,163.64,163.62,44.77362949]
[1752522601839,147.9,163.67,163.63,8.22304208]
[1752522602039,0.06,163.69,163.66,6.90190721]
[1752522602216,0.06,163.69,163.68,6.90190721]
[1752522602417,0.06,163.69,163.68,7.61190721]
[1752522603028,7.68190721,163.69,163.63,7.61190721]
[1752522603226,6.90190721,163.67,163.63,0.71]
[1752522603453,7.6656391,163.67,163.63,0.71]
[1752522603744,8.3856391,163.67,163.63,0.71]
[1752522604218,0.72,163.66,163.62,37.97190721]
[1752522604544,0.72,163.66,163.62,38.68190721]
[1752522604741,8.38573244,163.65,163.62,0.03]
[1752522605043,7.66573244,163.65,163.62,0.03]
[1752522605254,8.38573244,163.65,163.62,0.03]
[1752522605446,14.49636982,163.65,163.62,0.03]
[1752522606132,8.38573244,163.65,163.62,0.03]
[1752522606455,8.38559244,163.68,163.63,7.61190721]
[1752522607032,14.49511599,163.68,163.63,6.90190721]
[1752522607231,14.49511599,163.68,163.64,0.71]
[1752522607952,162.39511599,163.68,163.64,0.71]
[1752522608247,6.90190721,163.66,163.62,0.03]
[1752522608454,6.90190721,163.65,163.62,0.03]
[1752522608635,1.48382523,163.65,163.62,0.03]
[1752522608837,7.66573244,163.65,163.62,0.03]
[1752522609044,7.62190721,163.64,163.62,0.03]
[1752522609536,0.76391859,163.63,163.62,0.03]
[1752522609738,155.52190721,163.64,163.62,0.03]
[1752522610554,147.9,163.64,163.62,0.03]
[1752522610732,147.9,163.64,163.62,0.74]
[1752522611643,147.9,163.64,163.62,0.03]
[1752522612347,147.9,163.64,163.63,0.71]
[1752522612854,147.9,163.64,163.62,13.04353552]
[1752522613154,147.9,163.64,163.63,0.71]
[1752522613738,147.9,163.64,163.62,13.04353552]
[1752522614262,147.9,163.64,163.62,13.75353552]
[1752522614634,147.9,163.64,163.62,6.93190721]
[1752522615036,147.9,163.64,163.62,13.75356463]
[1752522616956,147.9,163.64,163.63,7.61190721]
[1752522618049,147.9,163.64,163.62,37.14165742]
[1752522618369,147.9,163.64,163.62,31.74]
[1752522618552,147.9,163.64,163.63,0.71]
[1752522618942,0.72,163.67,163.63,7.61190721]
[1752522619261,160.91150385,163.68,163.64,0.71]
[1752522619438,161.63150385,163.68,163.64,0.71]
[1752522620265,155.52190721,163.68,163.64,6.82095284]
[1752522620465,154.72948332,163.68,163.64,7.61190721]
[1752522621265,148.62,163.68,163.64,13.72281491]
[1752522622065,148.62,163.68,163.65,0.71]
[1752522622762,148.68,163.68,163.64,13.01281491]
[1752522622965,0.72,163.67,163.63,9.14310721]
[1752522623162,160.97141981,163.68,163.63,15.25441555]
[1752522623466,0.72,163.66,163.63,14.54441555]
[1752522623847,154.86190721,163.68,163.63,15.25441555]